Workbook

Sheet Tech (hidden)
A1: LT
A2: EN

Sheet Turinys
B2: LT | C2: ◄ | D2: Switch to English | F2: ◄ | G2: Rodyti lietuviškai
C4: SAVIVALDYBIŲ FISKALINĖS DRAUSMĖS TAISYKLIŲ LAIKYMOSI SKAIČIUOKLĖ | F4: SPREADSHEET OF THE FULFILMENT OF FISCAL DISCIPLINE RULES
C6: 2019-07 BPE-3 | G6: 2019-07 BPE-3
C8: APRAŠYMAS | F8: DESCRIPTION
D10: Fiskalinės sutarties įgyvendinimo konstituciniame įstatyme Nr. XII-1289 (toliau − KĮ) nustatytų fiskalinės drausmės taisyklių skaičiuoklė skirta skaidriai parodyti fiskalinės drausmės taisykles, pagal kurias priimami sprendimai. 1 dalis pateikia skaičiavimams reikalingų duomenų įvestis ir nurodo šių duomenų šaltinius. 2 dalyje nagrinėjamos dvi taisyklių grupės: savivaldybių, kurių asignavimai viršija arba yra lygūs 0,3 proc. ir savivaldybių, kurių asignavimai neviršija 0,3 proc. praėjusių metų BVP to meto kainomis | G10: Constitutional Law on the Implementation of the Fiscal Treaty Nr. XII-1289 (hereinafter − CL) defines fiscal discipline rules. The aim of this spreadsheet is to show the fiscal discipline rules, which are used for making decisions in a transparent way. Part 1 provides required input data with their appropriate sources. In part 2 two groups of the fiscal rules are validated: municipalities which expenditures are above or equal 0.3 and municipalities which expenditures are below 0.3% of GDP at current prices of previous year.
C12: 1. DUOMENYS | F12: 1 . DATA
D14: =Savivaldybės!B4 -> Savivaldybių 2019 m. biudžetų duomenys | G14: =+Savivaldybės!B4 -> Savivaldybių 2019 m. biudžetų duomenys
C16: 2. FISKALINĖS DRAUSMĖS TAISYKLĖS | F16: 2. FISCAL RULES
D18: =+'1 lentelė'!B4 -> 1 lentelė. Savivaldybių biudžetų fiskalinės drausmės taisyklės, 2019 m. | G18: ='1 lentelė'!F4 -> 
D19: =+'2 lentelė '!B8 -> 2 lentelė. Savivaldybių 2019 m. biudžetai, kuriems taikoma Konstitucinio įstatymo 4 str. 2 d. | G19: ='2 lentelė '!B5 -> 
D20: ='3 lentelė'!B7 -> 3 lentelė. Savivaldybių 2019 m. biudžetai, kuriems taikoma Konstitucinio įstatymo 4 str. 4 d. | G20: ='3 lentelė'!B3 -> 
C22: 3. PAVEIKSLAI | F22: 2. FISCAL RULES
D24: =+'1 pav.'!B4:B4 -> 1 pav. Skirtumai tarp savivaldybių Finansų ministerijai pateiktų ir fiskalinei institucijai patikslintų duomenų apie nepanaudotą praėjusių metų pajamų dalį | G24: ='1 pav.'!B4 -> 1 pav. Skirtumai tarp savivaldybių Finansų ministerijai pateiktų ir fiskalinei institucijai patikslintų duomenų apie nepanaudotą praėjusių metų pajamų dalį
D25: =+'2 pav.'!B4 -> 2 pav. Savivaldybių 2019 m. biudžetų fiskalinės drausmės taisyklių laikymosi vertinimas | G25: ='2 pav.'!B4 -> 2 pav. Savivaldybių 2019 m. biudžetų fiskalinės drausmės taisyklių laikymosi vertinimas
C27: KĮ | D27: Lietuvos Respublikos fiskalinės sutarties įgyvendinimo konstitucinis įstatymas | F27: CL | G27: Republic of Lithuania Constitutional Law on the Implementation of the Fiscal Treaty
C28: FDĮ | D28: Lietuvos Respublikos fiskalinės drausmės įstatymas | F28: FDL | G28: Republic of Lithuania Fiscal Discipline Law

Sheet Savivaldybės
B1: =IF(A4="lt","↖ atgal į turinį","") -> ↖ atgal į turinį
B2: =IF(A4="en","↖ back to content","") -> 
A4: =+[0]!Kalba -> LT | B4: =IF(A4="lt","Savivaldybių 2019 m. biudžetų duomenys","Budget attributable to local government in 2019") -> Savivaldybių 2019 m. biudžetų duomenys
B6: =IF(A4="LT","Savivaldybė","Local government") -> Savivaldybė | C6: =IF(A4="LT","Kodas","Code") -> Kodas | D6: =IF(A4="LT","Asignavimai, proc. BVP","Appropriations, % of GDP") -> Asignavimai, proc. BVP | E6: =IF(A4="LT","εi, pot. BVP","εi, pot. GDP") -> εi, pot. BVP | F6: =IF(A4="LT","εi, pot. BVP","εi, pot. GDP") -> εi, pot. BVP | G6: =IF(A4="LT","Pajamos, tūkst. EUR","Revenues, thousands EUR") -> Pajamos, tūkst. EUR | H6: =IF(A4="LT","Asignavimai, tūkst. EUR","Expenditures, thousands EUR") -> Asignavimai, tūkst. EUR | I6: =IF(A4="LT","Balansas, tūkst. EUR","Balance, thousands EUR") -> Balansas, tūkst. EUR | J6: =IF(A4="LT","Nepanaudota praėjusių metų pajamų dalis (2018-12-31), tūkst. EUR","Revenue, carried forward to the following budget year (31/12/2018), thousands EUR") -> Nepanaudota praėjusių metų pajamų dalis (2018-12-31), tūkst. EUR | K6: =IF(A4="LT","Nepanaudota praėjusių metų pajamų dalis (2018-12-31), tūkst. EUR pagal savivaldybių patikslintus duomenis","Revenue, carried forward to the following budget year (31/12/2018), thousands EUR according to the updated data provided by local government") -> Nepanaudota praėjusių metų pajamų dalis (2018-12-31), tūkst. EUR pagal savivaldybių patikslintus duomenis | L6: =IF(A4="LT","Mokėtinų sumų metinis pokytis, tūkst. EUR","Change in accounts payable, thousands EUR") -> Mokėtinų sumų metinis pokytis, tūkst. EUR | M6: =IF(A4="LT","Asignavimų dalis nuo visų valdžios sektoriaus išlaidų, proc.", "Share of approprations to total expenditure, %") -> Asignavimų dalis nuo visų valdžios sektoriaus išlaidų, proc.
B8: Vilniaus m. | C8: 1 | D8: =H8/$C$72/10 -> 1.453541496 | E8: =IF(D8>0.3,H8/$C$74/1000*$C$76,0) -> 0.0158838289 | F8: =IF(D8>0.3,H8/$D$74/1000*$D$76,0) -> 0.01589846829 | G8: 642064.3 | H8: =554170.7+100987.5+590.1 -> 655748.3 | I8: =ROUND(G8-H8,1) -> -13684 | J8: 39584.4 | K8: 39584.5 | L8: =38155.5-38100 -> 55.5 | M8: =H8/1000/$C$74*100 -> 3.845963414
B9: Alytaus m. | C9: 2 | D9: 0.1395465519 | E9: 0 | F9: 0 | G9: 58615.9 | H9: =52077.5+10877.3 -> 62954.8 | I9: =ROUND(G9-H9,1) -> -4338.9 | J9: 4900.7 | K9: 4900.7 | M9: 0.3692298669
B10: Birštono m. | C10: 3 | D10: 0.02116822961 | E10: 0 | F10: 0 | G10: 8999.1 | H10: =8215.8+1334 -> 9549.8 | I10: -550.7 | J10: 97.1 | K10: 551.7 | M10: 0.05600957168
B11: Druskininkų m. | C11: 4 | D11: 0.04961094623 | E11: 0 | F11: 0 | G11: 20662.6 | H11: =19294.6+3086.8 -> 22381.4 | I11: -1718.8 | J11: 0 | K11: 1718.8 | M11: 0.1312668985
B12: Kauno m. | C12: 5 | D12: 0.6940276877 | E12: 0.007584108931 | F12: 0.007591098852 | G12: 289128 | H12: =268401.4+44701.1 -> 313102.5 | I12: -23974.5 | J12: 23974.5 | K12: 23974.5 | L12: =4657.5-4638 -> 19.5 | M12: 1.836345988
B13: Klaipėdos m. | C13: 6 | D13: 0.4503270534 | E13: 0.00492102763 | F13: 0.004925563113 | G13: 183555.4 | H13: =161562.3+41184.9+412.6 -> 203159.8 | I13: -19604.4 | J13: 26724.6 | K13: 26724.6 | L13: =1832-2163.6 -> -331.6 | M13: 1.191532114
B14: Marijampolės m. | C14: 7 | D14: 0.1064657902 | E14: 0 | F14: 0 | G14: 48528 | H14: =46161+1869.8 -> 48030.8 | I14: 497.2 | J14: 686.4 | K14: 483.8 | M14: 0.2817006152
B15: Neringos m. | C15: 8 | D15: 0.02486133181 | E15: 0 | F15: 0 | G15: 9688.7 | H15: =9957.9+1258 -> 11215.9 | I15: -1527.2 | J15: 1702.2 | K15: 1702.2 | M15: 0.06578124725
B16: Palangos m. | C16: 9 | D16: 0.05442942384 | E16: 0 | F16: 0 | G16: 24607.1 | H16: =21510.7+3096.4-51.9 -> 24555.2 | I16: 51.9 | J16: 627.8 | K16: 627.8 | M16: 0.1440162343
B17: Panevėžio m. | C17: 10 | D17: 0.227864472 | E17: 0 | F17: 0 | G17: 102956.6 | H17: =78851.4+23955.2-8.2 -> 102798.4 | I17: 158.2 | J17: 2668.3 | K17: 2668.3 | M17: 0.6029125587
B18: Šiaulių m. | C18: 11 | D18: 0.3407469192 | E18: 0.00372357155 | F18: 0.003727003393 | G18: 137940.1 | H18: =107412.7+46311.3 -> 153724 | I18: -15783.9 | J18: 14835.9 | K18: 14835.9 | L18: 0 | M18: 0.9015911743
B19: Visagino m. | C19: 12 | D19: 0.06165492365 | E19: 0 | F19: 0 | G19: 24145.5 | H19: =22656.4+5158.5 -> 27814.9 | I19: -3669.4 | J19: 3734.7 | K19: 3734.7 | M19: 0.163134373
B20: Akmenės r. | C20: 13 | D20: 0.0648727836 | E20: 0 | F20: 0 | G20: 26731.7 | H20: =23017.7+6248.9 -> 29266.6 | I20: -2534.9 | J20: 399.5 | K20: 2534.9 | M20: 0.1716485927
B21: Alytaus r. | C21: 14 | D21: 0.0546639417 | E21: 0 | F21: 0 | G21: 20877.1 | H21: =20752.1+3908.9 -> 24661 | I21: -3783.9 | J21: 4499.2 | K21: =4499.2 -> 4499.2 | M21: 0.1446367513
B22: Anykščių r. | C22: 15 | D22: 0.06028439061 | E22: 0 | F22: 0 | G22: 25945.1 | H22: =23282+3914.6 -> 27196.6 | I22: -1251.5 | J22: 0 | K22: 1251.5 | M22: 0.1595080438
B23: Biržų r. | C23: 16 | D23: 0.05971361226 | E23: 0 | F23: 0 | G23: 25615.3 | H23: =23297.3+3641.8 -> 26939.1 | I23: -1323.8 | J23: 972.4 | K23: 1416.5 | M23: 0.1579978065
B24: Ignalinos r. | C24: 17 | D24: 0.03759955304 | E24: 0 | F24: 0 | G24: 15875.6 | H24: =15618.6+1344 -> 16962.6 | I24: -1087 | J24: 0 | K24: 1086.9 | M24: 0.09948563955
B25: Jonavos r. | C25: 18 | D25: 0.1090643279 | E25: 0 | F25: 0 | G25: 46393.2 | H25: =41247.7+8042.7-87.3 -> 49203.1 | I25: -2809.9 | J25: 3574.7 | K25: 3574.7 | M25: 0.2885761541
B26: Joniškio r. | C26: 19 | D26: 0.05102315162 | E26: 0 | F26: 0 | G26: 22099.5 | H26: =21760.8+1257.7 -> 23018.5 | I26: -919 | J26: 449.3 | K26: 919 | M26: 0.1350034897
A27: - | B27: Jurbarko r. | C27: 20 | D27: 0.06276079286 | E27: 0 | F27: 0 | G27: 26395.9 | H27: =25608.2+2705.6 -> 28313.8 | I27: -1917.9 | J27: 2037.2 | K27: 2037.2 | M27: 0.1660604212
A28: - | B28: Kaišiadorių r. | C28: 21 | D28: 0.07142975233 | E28: 0 | F28: 0 | G28: 31200.1 | H28: =27544.7+4680 -> 32224.7 | I28: -1024.6 | J28: 332.9 | K28: =1286.1+119.9 -> 1406 | M28: 0.1889978475
B29: Kauno r. | C29: 22 | D29: 0.1886115459 | E29: 0 | F29: 0 | G29: 83141.5 | H29: =68967.1+16122.8 -> 85089.9 | I29: -1948.4 | J29: 0 | K29: 2109.4 | M29: 0.4990522161
B30: Kėdainių r. | C30: 23 | D30: 0.1328654528 | E30: 0 | F30: 0 | G30: 53225.2 | H30: =46777.1+13163.6 -> 59940.7 | I30: -6715.5 | J30: 4848.2 | K30: 7078.3 | M30: 0.3515521721
B31: Kelmės r. | C31: 24 | D31: 0.07317644493 | E31: 0 | F31: 0 | G31: 31143.4 | H31: =26579+6433.7 -> 33012.7 | I31: -1869.3 | J31: 1423.7 | K31: 1423.7 | M31: 0.1936194671
B32: Klaipėdos r. | C32: 25 | D32: 0.1268588695 | E32: 0 | F32: 0 | G32: 55843.7 | H32: =48233.4+8997.5 -> 57230.9 | I32: -1387.2 | J32: 1513 | K32: 1513 | M32: 0.3356591966
B33: Kretingos r. | C33: 26 | D33: 0.09446415008 | E33: 0 | F33: 0 | G33: 39885.3 | H33: =33650.1+8966.3 -> 42616.4 | I33: -2731.1 | J33: 0 | K33: 1755.6 | M33: 0.2499451623
B34: Kupiškio r. | C34: 27 | D34: 0.04022025692 | E34: 0 | F34: 0 | G34: 17759.8 | H34: =16948.1+1196.8 -> 18144.9 | I34: -385.1 | J34: 556.9 | K34: 556.9 | M34: 0.1064198284
B35: Lazdijų r. | C35: 28 | D35: 0.04848091591 | E35: 0 | F35: 0 | G35: 21205.9 | H35: =20239.8+1631.8 -> 21871.6 | I35: -665.7 | J35: 1394.5 | K35: 1394.5 | M35: 0.1282769218
B36: Mažeikių r. | C36: 30 | D36: 0.1367952894 | E36: 0 | F36: 0 | G36: 59737.9 | H36: =54134.6+7579 -> 61713.6 | I36: -1975.7 | J36: 2454 | K36: 2454 | M36: 0.3619502296
B37: Molėtų r. | C37: 31 | D37: 0.04563988051 | E37: 0 | F37: 0 | G37: 19930.4 | H37: =17389.1+3200.8 -> 20589.9 | I37: -659.5 | J37: 682.3 | K37: 682.3 | M37: 0.120759752
B38: Pakruojo r. | C38: 32 | D38: 0.04752267326 | E38: 0 | F38: 0 | G38: 20990.6 | H38: =20556.9+897.8-15.4 -> 21439.3 | I38: -448.7 | J38: 0 | K38: 495.4 | M38: 0.1257414826
B39: Panevėžio r. | C39: 33 | D39: 0.08365216726 | E39: 0 | F39: 0 | G39: 36549.7 | H39: =31344.8+6393.9 -> 37738.7 | I39: -1189 | J39: 2565.5 | K39: 2565.5 | M39: 0.2213374545
B40: Pasvalio r. | C40: 34 | D40: 0.05847696277 | E40: 0 | F40: 0 | G40: 25837.6 | H40: =24782.7+1598.5 -> 26381.2 | I40: -543.6 | J40: 543.6 | K40: 543.6 | M40: 0.1547257233
B41: Plungės r. | C41: 35 | D41: 0.08667186183 | E41: 0 | F41: 0 | G41: 37835.1 | H41: =30828.7+8272.3 -> 39101 | I41: -1265.9 | J41: 1265.9 | K41: 1265.9 | M41: 0.2293273432
B42: Prienų r. | C42: 36 | D42: 0.05605353763 | E42: 0 | F42: 0 | G42: 25099.1 | H42: =24057.4+1230.5 -> 25287.9 | I42: -188.8 | J42: 632.2 | K42: 871.8 | M42: 0.1483135194
B43: Radviliškio r. | C43: 37 | D43: 0.09062364299 | E43: 0 | F43: 0 | G43: 36498.3 | H43: =37546.1+3337.7 -> 40883.8 | I43: -4385.5 | J43: 525.8 | K43: 4385.5 | M43: 0.2397834642
B44: Raseinių r. | C44: 38 | D44: 0.07072885868 | E44: 0 | F44: 0 | G44: 31381.9 | H44: =30044.8+1893.6-29.9 -> 31908.5 | I44: -526.6 | J44: 1183.7 | K44: =770.6+276.7 -> 1047.3 | M44: 0.1871433347
B45: Rokiškio r. | C45: 39 | D45: 0.06458462365 | E45: 0 | F45: 0 | G45: 28364.4 | H45: =28879.2+257.4 -> 29136.6 | I45: -772.2 | J45: 772.2 | K45: 772.2 | M45: 0.1708861428
B46: Skuodo r. | C46: 40 | D46: 0.04157039709 | E46: 0 | F46: 0 | G46: 18109 | H46: =16342.1+2411.9 -> 18754 | I46: -645 | J46: 643.7 | K46: 645 | M46: 0.1099921996
B47: Šakių r. | C47: 41 | D47: 0.0650782638 | E47: 0 | F47: 0 | G47: 28544.2 | H47: =27084.7+2274.6 -> 29359.3 | I47: -815.1 | J47: 832.6 | K47: =832.6+390.4 -> 1223 | M47: 0.1721922781
B48: Šalčininkų r. | C48: 42 | D48: 0.06762005619 | E48: 0 | F48: 0 | G48: 30325.2 | H48: =30037.4+468.6 -> 30506 | I48: -180.8 | J48: 741.8 | K48: 741.8 | M48: 0.178917673
B49: Šiaulių r. | C49: 43 | D49: 0.07858210385 | E49: 0 | F49: 0 | G49: 34648.3 | H49: =32419.9+3031.5 -> 35451.4 | I49: -803.1 | J49: 839.4 | K49: 839.4 | M49: 0.2079224412
B50: Šilalės r. | C50: 44 | D50: 0.05781042665 | E50: 0 | F50: 0 | G50: 25490.9 | H50: =22520.6+3559.9 -> 26080.5 | I50: -589.6 | J50: 0 | K50: 1039.6 | M50: 0.152962118
B51: Šilutės r. | C51: 45 | D51: 0.09662800962 | E51: 0 | F51: 0 | G51: 42425.9 | H51: =37895.2+5697.4 -> 43592.6 | I51: -1166.7 | J51: 0 | K51: =1308.1-141.3 -> 1166.8 | M51: 0.2556705747
B52: Širvintų r. | C52: 46 | D52: 0.03577638723 | E52: 0 | F52: 0 | G52: 15542.1 | H52: =14318.7+1821.4 -> 16140.1 | I52: -598 | J52: 950.8 | K52: 950.8 | M52: 0.09466167751
B53: Švenčionių r. | C53: 47 | D53: 0.0650858003 | E53: 0 | F53: 0 | G53: 28147.3 | H53: =20877.1+8551.9-66.3 -> 29362.7 | I53: -1215.4 | J53: 1219.5 | K53: =1219.5 -> 1219.5 | M53: 0.1722122191
B54: Tauragės r. | C54: 48 | D54: 0.09612927125 | E54: 0 | F54: 0 | G54: 40770.4 | H54: =34578.2+8789.4 -> 43367.6 | I54: -2597.2 | J54: 2597.2 | K54: 2597.2 | M54: 0.2543509498
B55: Telšių r. | C55: 49 | D55: 0.09097431148 | E55: 0 | F55: 0 | G55: 40182.3 | H55: =37310.5+3731.5 -> 41042 | I55: -859.7 | J55: 612.6 | K55: 859.7 | M55: 0.2407113071
B56: Trakų r. | C56: 50 | D56: 0.09054029827 | E56: 0 | F56: 0 | G56: 39239.8 | H56: =32729.2+8129.1-12.1 -> 40846.2 | I56: -1606.4 | J56: 2476.9 | K56: 2476.9 | M56: 0.2395629402
B57: Ukmergės r. | C57: 51 | D57: 0.08175651814 | E57: 0 | F57: 0 | G57: 34426.1 | H57: =33604.9+3329.6-51 -> 36883.5 | I57: -2457.4 | J57: 2542.2 | K57: 2542.2 | M57: 0.2163217069
B58: Utenos r. | C58: 52 | D58: 0.08302464356 | E58: 0 | F58: 0 | G58: 36826.6 | H58: =33604+3851.6 -> 37455.6 | I58: -629 | J58: 675 | K58: =675-0.4 -> 674.6 | M58: 0.2196770731
B59: Varėnos r. | C59: 53 | D59: 0.05221258721 | E59: 0 | F59: 0 | G59: 22127.2 | H59: =21463.1+2092 -> 23555.1 | I59: -1427.9 | J59: 1428 | K59: 1428 | M59: 0.1381506484
B60: Vilkaviškio r. | C60: 54 | D60: 0.08016454527 | E60: 0 | F60: 0 | G60: 34950.8 | H60: =33632.1+2533.2 -> 36165.3 | I60: -1214.5 | J60: 1091.7 | K60: 1214.5 | M60: 0.2121094643
B61: Vilniaus r. | C61: 55 | D61: 0.1975600205 | E61: 0 | F61: 0 | G61: 83128.7 | H61: =80878.4+8248.5 -> 89126.9 | I61: -5998.2 | J61: 5998.2 | K61: 5998.2 | M61: 0.5227292188
B62: Zarasų r. | C62: 56 | D62: 0.04206714051 | E62: 0 | F62: 0 | G62: 17257.9 | H62: =16290.8+2687.3 -> 18978.1 | I62: -1720.2 | J62: 211.7 | K62: 1096.8 | M62: 0.1113065459
B63: Elektrėnų sav. | C63: 57 | D63: 0.07273556021 | E63: 0 | F63: 0 | G63: 31901.3 | H63: =23725.4+9095.7-7.3 -> 32813.8 | I63: -912.5 | J63: 488.7 | K63: =156.2+41.7 -> 197.9 | M63: 0.1924529187
B64: Kalvarijos sav. | C64: 58 | D64: 0.02359653131 | E64: 0 | F64: 0 | G64: 10403.3 | H64: =10317.1+328.2 -> 10645.3 | I64: -242 | J64: 0 | K64: 269 | M64: 0.06243467857
B65: Kazlų Rūdos sav. | C65: 59 | D65: 0.02555158571 | E65: 0 | F65: 0 | G65: 10974.3 | H65: =10827.2+700.1 -> 11527.3 | I65: -553 | J65: 31.9 | K65: 558 | M65: 0.06760760808
B66: Pagėgių sav. | C66: 60 | D66: 0.02059589963 | E66: 0 | F66: 0 | G66: 9135.2 | H66: =8706.2+585.4 -> 9291.6 | I66: -156.4 | J66: 105.3 | K66: =5.7+9.6+105.3+5.1+6.7 -> 132.4 | M66: 0.05449522882
B67: Rietavo sav. | C67: 61 | D67: 0.02107069855 | E67: 0 | F67: 0 | G67: 9216.7 | H67: =7540.3+1965.5 -> 9505.8 | I67: -289.1 | J67: 0 | K67: 498.3 | M67: 0.0557515117
B70: =IF(A4="LT","2018 m. potencialus BVP, mln. EUR ","Potential GDP 2018, mil. EUR ") -> 2018 m. potencialus BVP, mln. EUR | C70: 36551.25119 | D70: 36142.37005
B71: =IF(A4="LT","2019 m. BVP projekcija, mln. EUR ","Nominal GDP 2019 forecast, mil. EUR ") -> 2019 m. BVP projekcija, mln. EUR | C71: 47369.12538 | D71: 47369.12538
B72: =IF(A4="LT","2018 m. BVP, mln. EUR ","Nominal GDP 2018, mil. EUR ") -> 2018 m. BVP, mln. EUR | C72: 45113.83415 | D72: 45113.83415
B73: =IF(A4="LT","2019 m. atotrūkis nuo potencialo, proc. pot. BVP ","Output gap for the year 2019, % pot. GDP ") -> 2019 m. atotrūkis nuo potencialo, proc. pot. BVP | C73: 1.511846345 | D73: 1.480405183
B74: =IF(A4="LT","2019 m. projektuotos valžios sektoriaus išlaidos, mln. EUR ","Total expenditure projected for 2019, mil. EUR ") -> 2019 m. projektuotos valžios sektoriaus išlaidos, mln. EUR | C74: 17050.3 | D74: 17034.6
B75: =IF(A4="LT","2018 m. visos išlaidos, mln. EUR ","Total expenditure for the year 2018, mil. EUR") -> 2018 m. visos išlaidos, mln. EUR | C75: 15342.7585 | D75: 15342.7585
B76: =IF(A4="LT","Valdžios sektoriaus biudžeto dalinis elastingumas","Semi-elasticity of the GG sector ") -> Valdžios sektoriaus biudžeto dalinis elastingumas | C76: 0.413 | D76: 0.413
B78: =IF(A4="LT","Šaltiniai:","Sources:") -> Šaltiniai:
B79: =IF(A4="LT","Finansų ministerija (FM)","Ministry of Finance (MoF)") -> Finansų ministerija (FM)
B80: =IF(A4="lt","Fiskalinės institucijos skaičiavimai (IFI)","Independent fiscal institution (IFI)") -> Fiskalinės institucijos skaičiavimai (IFI)
B81: =IF(A4="lt","Faktiniai duomenys","Actual data") -> Faktiniai duomenys

Sheet 1 lentelė
B1: =IF(A6="lt","↖ atgal į turinį","") -> ↖ atgal į turinį
F2: =IF(A4="en","↖ back to content","") -> 
A4: =+[0]!Kalba -> LT | B4: =IF(A4="LT","1 lentelė. Savivaldybių biudžetų fiskalinės drausmės taisyklės, 2019 m.","") -> 1 lentelė. Savivaldybių biudžetų fiskalinės drausmės taisyklės, 2019 m. | F4: =IF(A4="EN","Table 1. Fiscal discipline rules attributable to local government","") -> 
A6: =Kalba -> LT | B6: Nr. | C6: Taisyklė | D6: Taisyklė, išreikšta formule | E6: Išvada | F6: No. | G6: Rule | H6: Formula | I6: Conclusion
B7: T21 | C7: Kiekvienas valdžios sektoriui priskiriamas biudžetas, išskyrus VSDF, valstybės biudžetą, kurio asignavimai viršija 0,3 proc. praėjusių metų BVP to meto kainomis, turi būti planuojamas, tvirtinamas, keičiamas ir vykdomas taip, kad, sprendžiant pagal to biudžeto struktūrinį balanso rodiklį, apskaičiuotą kaupiamuoju principu, jis būtų perteklinis arba subalansuotas. | D7: SBj,2019 ≥ 0 | E7: Visų savivaldybių (Kauno, Klaipėdos, Šiaulių ir Vilniaus miestų) biudžeto struktūriniai balanso rodikliai buvo subalansuoti* | F7: R21 | G7: Each budget attributable to local government sector, with the exception of the budget of the State Social Insurance Fund of the Republic of Lithuania, planned appropriations of which exceeds 0.3 % of GDP in the preceding year at current prices, must be planned, approved, amended and implemented to be in surplus or balanced when judged by its structural balance indicator calculated on accrual basis. | H7: SBj,2019 ≥ 0 | I7: All local governments (Kaunas, Klaipėda, Šiauliai and Vilnius) follow fiscal rule*
B8: T4 | C8: Kiekvienas j–asis vietos valdžios sektoriui priskiriamas biudžetas, kurio asignavimai neviršija 0,3 proc. praėjusių metų BVP to meto kainomis, turi būti planuojamas, tvirtinamas, keičiamas ir vykdomas taip, kad to biudžeto asignavimai neviršytų jo pajamų, išskyrus metus, kuriais numatomas neigiamas produkcijos atotrūkis nuo potencialo. Pastaruoju atveju asignavimai negali viršyti pajamų daugiau kaip 1,5 procento. | D8: AP2019 ≥ 0 ir | E8: Tenkinama | F8: R4 | G8: Each j-th budget attributable to local government sector the planned appropriations of which do not exceed 0.3 % of GDP in the preceding year at current prices shall be planned, approved, amended and implemented in such a way that the appropriations of the budget would not exceed its revenue, with the exception of the year when a negative output gap is projected. In the latter case, the appropriations may not exceed revenue by more than 1.5 %. | H8: OG2019 ≥ 0 and | I8: Valid
D10: SAj,2019/SPj,2019 ≤ 1 | E10: 53 savivaldybių biudžetai buvo perviršiniai arba subalansuoti | H10: LEj,2019/LRj,2019 ≤ 1 | I10: 53 local governments follow fiscal rule
D11: AP2019 < 0 ir | E11: Negalioja | H11: OG2019 < 0 and | I11: Not valid
D12: SAj,2019/SPj,2019 ≤ 1,015 | E12: 1,5 > 0,0 | H12: LEj,2019/LRj,2019 ≤ 1,015 | I12: 1,5 > 0,0
B13: * Struktūrinio balanso rezultatas apvalinamas vieno skaitmens po kablelio tikslumu. | F13: * The result of structural balance indicator is rounded to one decimal place.
B14: Šaltinis – Fiskalinės institucijos skaičiavimai | F14: Source – Independent fiscal institution calculations

Sheet 2 lentelė
B1: =IF(A4="lt","↖ atgal į turinį","") -> ↖ atgal į turinį
B2: =IF(A4="en","↖ back to content","") -> 
A4: =Kalba -> LT
B5: =IF(A4="LT","","Table 2. Budgets attributable to local government in 2019, CL 4.2.") -> 
B6: =IF(A4="en","In accordance with Art. 4(2) of the CL, budgets of local governments the planned appropriations of which are equal or exceeds 0.3 % of GDP in the preceding year at current prices, must be planned,","") -> 
B7: =IF(A4="en","approved, amended and implemented to be in surplus or balanced when judged by its structural balance indicator calculated on accrual basis.","") -> 
B8: =IF(A4="LT","2 lentelė. Savivaldybių 2019 m. biudžetai, kuriems taikoma Konstitucinio įstatymo 4 str. 2 d."," ") -> 2 lentelė. Savivaldybių 2019 m. biudžetai, kuriems taikoma Konstitucinio įstatymo 4 str. 2 d.
B9: =IF(A4="lt","Remiantis KĮ 4 str. 2 d., savivaldybių, kurių planuojami asignavimai viršija arba yra lygūs 0,3 proc. praėjusių metų BVP to meto kainomis, biudžetai turi būti planuojami, tvirtinami, keičiami ir vykdomi taip,","") -> Remiantis KĮ 4 str. 2 d., savivaldybių, kurių planuojami asignavimai viršija arba yra lygūs 0,3 proc. praėjusių metų BVP to meto kainomis, biudžetai turi būti planuojami, tvirtinami, keičiami ir vykdomi taip,
B10: =IF(A4="lt","kad sprendžiant pagal to biudžeto struktūrinį balanso rodiklį, apskaičiuotą kaupiamuoju principu, jis būtų perteklinis arba subalansuotas.","") -> kad sprendžiant pagal to biudžeto struktūrinį balanso rodiklį, apskaičiuotą kaupiamuoju principu, jis būtų perteklinis arba subalansuotas.
A11: =Kalba -> LT
B12: =IF(A4="LT","Savivaldybė", "Local government") -> Savivaldybė | C12: =IF(A4="LT","Kodas","Code") -> Kodas | D12: =IF(A4="LT","Asignavimai, proc. BVP","Appropriations, % of GDP") -> Asignavimai, proc. BVP | E12: =IF(A4="LT","εi, pot. BVP","εi, pot. GDP") -> εi, pot. BVP | F12: =IF(A4="LT","εi, pot. BVP","εi, pot. GDP") -> εi, pot. BVP | G12: =IF(A4="LT","Pajamos, tūkst. EUR","Revenues, thousands EUR") -> Pajamos, tūkst. EUR | H12: =IF(A4="LT","Asignavimai, tūkst. EUR","Expenditures, thousands EUR") -> Asignavimai, tūkst. EUR | I12: =IF(A4="LT","Balansas, tūkst. EUR","Balance, thousands EUR") -> Balansas, tūkst. EUR | J12: =IF(A4="LT","Nepanaudota praėjusių metų pajamų dalis (2018-12-31), tūkst. EUR","Revenue, carried forward to the following budget year (31/12/2018), thousands EUR") -> Nepanaudota praėjusių metų pajamų dalis (2018-12-31), tūkst. EUR | K12: =IF(A4="LT","Nepanaudota praėjusių metų pajamų dalis (2018-12-31), tūkst. EUR","Revenue, carried forward to the following budget year (31/12/2018), thousands EUR") -> Nepanaudota praėjusių metų pajamų dalis (2018-12-31), tūkst. EUR | L12: =IF(A4="LT","Mokėtinų sumų metinis pokytis, tūkst. EUR","Change in accounts payable, thousands EUR") -> Mokėtinų sumų metinis pokytis, tūkst. EUR | M12: =IF(A4="LT","Balansas kaupiamuoju principu, tūkst. EUR","Balance on accrual basis, thousands EUR") -> Balansas kaupiamuoju principu, tūkst. EUR | N12: =IF(A4="LT","Balansas kaupiamuoju principu, proc. BVP","Balance on accrual basis, % of GDP") -> Balansas kaupiamuoju principu, proc. BVP | O12: =IF(A4="LT","Asignavimų dalis nuo visų valdžios sektoriaus išlaidų, proc.", "Share of approprations to total expenditure, %") -> Asignavimų dalis nuo visų valdžios sektoriaus išlaidų, proc. | P12: =IF(A4="LT","Ciklinė biudžeto dedamoji, proc. BVP","Cyclical budgetary component,% of GDP") -> Ciklinė biudžeto dedamoji, proc. BVP | Q12: =IF(A4="LT","Struktūrinis balansas, proc. BVP","Structural balance, % of GDP") -> Struktūrinis balansas, proc. BVP | R12: =IF($A$4="LT","Ar laikomasi fiskalinės drausmės taisyklės:", "Fiscal rule") -> Ar laikomasi fiskalinės drausmės taisyklės: | T12: Fiscal rule
G14: 1 | H14: 2 | I14: 3=1-2 | J14: 4 | K14: 5 | L14: 6 | M14: 7=3+5+6 | N14: 8 | O14: 9 | P14: 10 | Q14: 11=8-10 | R14: IFI | S14: FM | T14: IFI | U14: FM
D15: – | E15: – | F15: – | G15: =IF(A4="LT","FM įsakymo Nr. 1K-006 forma SB-1-pajamos (73 eilutė)","Order MoF No. 1K-006 form SB-1-revenue (row 73)") -> FM įsakymo Nr. 1K-006 forma SB-1-pajamos (73 eilutė) | H15: =IF(A4="LT","FM įsakymo Nr. 1K-006 forma SB-3-išlaidos (1+77-102+111 eilutės)","Order MoF No. 1K-006 form SB-3-expenditure (rows 1+77-102+111)") -> FM įsakymo Nr. 1K-006 forma SB-3-išlaidos (1+77-102+111 eilutės) | I15: – | J15: =IF(A4="LT","FM įsakymo Nr. 1K-361 forma Nr. 1-SAV (105 eilutė)","Order MoF No. 1K-361 form No. A-SAV (row 105)") -> FM įsakymo Nr. 1K-361 forma Nr. 1-SAV (105 eilutė) | K15: =IF(A4="LT","Pagal savivaldybių patikslintus duomenis","According to the updated data provided by local governments") -> Pagal savivaldybių patikslintus duomenis | L15: =IF(A4="lt","Pagal savivaldybių pateiktas mokėtinų sumų prognozes","According to the forecasts of accounts payables provided by local governments") -> Pagal savivaldybių pateiktas mokėtinų sumų prognozes | M15: – | N15: – | O15: – | P15: – | Q15: –
B16: Vilniaus m. | C16: 1 | D16: =H16/$C$25/10 -> 1.453541496 | E16: =IF(D16>0.3,H16/$C$27/1000*$C$29,0) -> 0.0158838289 | F16: =IF(D16>0.3,H16/$D$27/1000*$D$29,0) -> 0.01589846829 | G16: 642064.3 | H16: =554170.7+100987.5+590.1 -> 655748.3 | I16: =ROUND(G16-H16,1) -> -13684 | J16: 39584.4 | K16: 39584.5 | L16: =38155.5-38100 -> 55.5 | M16: =I16+K16+L16 -> 25956 | N16: =M16/1000/$C$24*100 -> 0.05479518525 | O16: =H16/1000/$C$27*100 -> 3.845963414 | P16: =0.413*O16*$C$26/100 -> 0.02401390866 | Q16: =N16-0.413*O16*$C$26/100 -> 0.03078127658 | R16: =IF(M16/$C$24/10-E16*$C$26<-0.05,"Ne","Taip") -> Taip | S16: =IF(M16/$D$24/10-F16*$D$26<-0.05,"Ne","Taip") -> Taip | T16: =IF($A$4="LT","",IF(R16="Taip","Yes","No") ) -> 
B17: Kauno m. | C17: 5 | D17: =H17/$C$25/10 -> 0.6940276877 | E17: =IF(D17>0.3,H17/$C$27/1000*$C$29,0) -> 0.007584108931 | F17: =IF(D17>0.3,H17/$D$27/1000*$D$29,0) -> 0.007591098852 | G17: 289128 | H17: =268401.4+44701.1 -> 313102.5 | I17: =ROUND(G17-H17,1) -> -23974.5 | J17: 23974.5 | K17: 23974.5 | L17: =4657.5-4638 -> 19.5 | M17: =I17+K17+L17 -> 19.5 | N17: =M17/1000/$C$24*100 -> 4.116605456e-05 | O17: =H17/1000/$C$27*100 -> 1.836345988 | P17: =0.413*O17*$C$26/100 -> 0.01146600737 | Q17: =N17-0.413*O17*$C$26/100 -> -0.01142484131 | R17: =IF(M17/$C$24/10-E17*$C$26<-0.05,"Ne","Taip") -> Taip | S17: =IF(M17/$D$24/10-F17*$D$26<-0.05,"Ne","Taip") -> Taip
B18: Klaipėdos m. | C18: 6 | D18: =H18/$C$25/10 -> 0.4503270534 | E18: =IF(D18>0.3,H18/$C$27/1000*$C$29,0) -> 0.00492102763 | F18: =IF(D18>0.3,H18/$D$27/1000*$D$29,0) -> 0.004925563113 | G18: 183555.4 | H18: =161562.3+41184.9+412.6 -> 203159.8 | I18: =ROUND(G18-H18,1) -> -19604.4 | J18: 26724.6 | K18: 26724.6 | L18: =1832-2163.6 -> -331.6 | M18: =I18+K18+L18 -> 6788.6 | N18: =M18/1000/$C$24*100 -> 0.0143312758 | O18: =H18/1000/$C$27*100 -> 1.191532114 | P18: 0.007439837635 | Q18: =N18-0.413*O18*$C$26/100 -> 0.006891438161 | R18: =IF(M18/$C$24/10-E18*$C$26<-0.05,"Ne","Taip") -> Taip | S18: =IF(M18/$D$24/10-F18*$D$26<-0.05,"Ne","Taip") -> Taip
B19: Šiaulių m. | C19: 11 | D19: =H19/$C$25/10 -> 0.3407469192 | E19: =IF(D19>0.3,H19/$C$27/1000*$C$29,0) -> 0.00372357155 | F19: =IF(D19>0.3,H19/$D$27/1000*$D$29,0) -> 0.003727003393 | G19: 137940.1 | H19: =107412.7+46311.3 -> 153724 | I19: =ROUND(G19-H19,1) -> -15783.9 | J19: 14835.9 | K19: 14835.9 | L19: 0 | M19: =I19+K19+L19 -> -948 | N19: =M19/1000/$C$24*100 -> -0.002001303576 | O19: =H19/1000/$C$27*100 -> 0.9015911743 | P19: 0.005629468037 | Q19: =N19-0.413*O19*$C$26/100 -> -0.007630771613 | R19: =IF(M19/$C$24/10-E19*$C$26<-0.05,"Ne","Taip") -> Taip | S19: =IF(M19/$D$24/10-F19*$D$26<-0.05,"Ne","Taip") -> Taip
Q20: =IF(A4="lt","T21 (iš viso nesilaiko savivaldybių)","T4 (total do not comply)") -> T21 (iš viso nesilaiko savivaldybių) | R20: =COUNTIF(R16:R19,"Ne") -> 0 | S20: =COUNTIF(S16:S19,"Ne") -> 0 | T20: =IF($A$4="LT","",R20 ) ->  | U20: =IF($A$4="LT","",S20 ) -> 
T21: =IF($A$4="LT","",R21 ) ->  | U21: =IF($A$4="LT","",S21 ) -> 
B23: =Savivaldybės!B70 -> 2018 m. potencialus BVP, mln. EUR | C23: =Savivaldybės!C70 -> 36551.25119 | D23: =Savivaldybės!D70 -> 36142.37005
B24: =Savivaldybės!B71 -> 2019 m. BVP projekcija, mln. EUR | C24: =Savivaldybės!C71 -> 47369.12538 | D24: =Savivaldybės!D71 -> 47369.12538
B25: =Savivaldybės!B72 -> 2018 m. BVP, mln. EUR | C25: =Savivaldybės!C72 -> 45113.83415 | D25: =Savivaldybės!D72 -> 45113.83415
B26: =Savivaldybės!B73 -> 2019 m. atotrūkis nuo potencialo, proc. pot. BVP | C26: =Savivaldybės!C73 -> 1.511846345 | D26: =Savivaldybės!D73 -> 1.480405183
B27: =Savivaldybės!B74 -> 2019 m. projektuotos valžios sektoriaus išlaidos, mln. EUR | C27: =Savivaldybės!C74 -> 17050.3 | D27: =Savivaldybės!D74 -> 17034.6
B28: =Savivaldybės!B75 -> 2018 m. visos išlaidos, mln. EUR | C28: =Savivaldybės!C75 -> 15342.7585 | D28: =Savivaldybės!D75 -> 15342.7585
B29: =Savivaldybės!B76 -> Valdžios sektoriaus biudžeto dalinis elastingumas | C29: =Savivaldybės!C76 -> 0.413 | D29: =Savivaldybės!D76 -> 0.413
B31: =+Savivaldybės!B78 -> Šaltiniai:
B32: =+Savivaldybės!B79 -> Finansų ministerija (FM)
B33: =+Savivaldybės!B80 -> Fiskalinės institucijos skaičiavimai (IFI)
B34: =+Savivaldybės!B81 -> Faktiniai duomenys

Sheet 3 lentelė
B1: =IF(A4="lt","↖ atgal į turinį","") -> ↖ atgal į turinį
B2: =IF(A4="en","↖ back to content","") -> 
B3: =IF(A4="en","Table 3. Budget data of local govenrnments in 2019, CL 4.4.","") -> 
A4: =Kalba -> LT | B4: =IF(A4="en","In accordance with Art. 4(2) of the CL, budgets of local governments the planned appropriations of which do not exceed 0.3 % of GDP in the preceding year at current prices shall be planned,","") -> 
B5: =IF(A4="en","approved, amended and implemented in such a way that the appropriations of the budget would not exceed its revenue.","") -> 
B6: =IF(A4="LT","","Since a positive output gap for the year 2019 is forecasted, the budgets of the indicated local governments shall be planned without deficit.") -> 
B7: =IF(A4="LT","3 lentelė. Savivaldybių 2019 m. biudžetai, kuriems taikoma Konstitucinio įstatymo 4 str. 4 d.","") -> 3 lentelė. Savivaldybių 2019 m. biudžetai, kuriems taikoma Konstitucinio įstatymo 4 str. 4 d.
B8: =IF(A4="lt","Vadovaujantis KĮ 4 str. 4 d., savivaldybių, kurių planuojami asignavimai neviršija 0,3 proc. praėjusių metų BVP to meto kainomis, biudžetai turi būti planuojami, tvirtinami, keičiami ir vykdomi taip, kad jų asignavimai neviršytų pajamų.","") -> Vadovaujantis KĮ 4 str. 4 d., savivaldybių, kurių planuojami asignavimai neviršija 0,3 proc. praėjusių metų BVP to meto kainomis, biudžetai turi būti planuojami, tvirtinami, keičiami ir vykdomi taip, kad jų asignavimai neviršytų pajamų.
B9: =IF(A4="lt","Kadangi 2019 m. numatomas teigiamas produkcijos atotrūkis nuo potencialo, tai reiškia, kad nurodytų savivaldybių biudžetų balanso rodikliai turėtų būti planuojami be deficito.","") -> Kadangi 2019 m. numatomas teigiamas produkcijos atotrūkis nuo potencialo, tai reiškia, kad nurodytų savivaldybių biudžetų balanso rodikliai turėtų būti planuojami be deficito.
A10: =Kalba -> LT
B11: =IF(A4="LT","Savivaldybė", "Local government") -> Savivaldybė | C11: =IF(A4="LT","Kodas","Code") -> Kodas | D11: =IF(A4="LT","Asignavimai, proc. BVP","Appropriations, % of GDP") -> Asignavimai, proc. BVP | E11: =IF(A4="LT","Pajamos, tūkst. EUR","Revenues, thousands EUR") -> Pajamos, tūkst. EUR | F11: =IF(A4="LT","Asignavimai, tūkst. EUR","Expenditures, thousands EUR") -> Asignavimai, tūkst. EUR | G11: =IF(A4="LT","Balansas, tūkst. EUR","Balance, thousands EUR") -> Balansas, tūkst. EUR | H11: =IF(A4="LT","Nepanaudota praėjusių metų pajamų dalis (2018-12-31), tūkst. EUR","Revenue, carried forward to the following budget year (31/12/2018), thousands EUR") -> Nepanaudota praėjusių metų pajamų dalis (2018-12-31), tūkst. EUR | I11: =IF(A4="LT","Nepanaudota praėjusių metų pajamų dalis (2018-12-31), tūkst. EUR","Revenue, carried forward to the following budget year (31/12/2018), thousands EUR") -> Nepanaudota praėjusių metų pajamų dalis (2018-12-31), tūkst. EUR | J11: =IF(A4="LT","Balansas, koreguotas praėjusių metų nepanaudota pajamų dalimi, tūkst. EUR","Balance, adjusted to revenue carried forward to the following budget year") -> Balansas, koreguotas praėjusių metų nepanaudota pajamų dalimi, tūkst. EUR | K11: =IF(A4="LT","Balansas, koreguotas nepanaudota praėjusių metų pajamų dalimi, proc. BVP","Balance adjusted to revenue caried forward to the following budget year, % of GDP") -> Balansas, koreguotas nepanaudota praėjusių metų pajamų dalimi, proc. BVP | L11: =IF($A$4="LT","Ar laikomasi fiskalinės drausmės taisyklės:", "Fiscal rule") -> Ar laikomasi fiskalinės drausmės taisyklės: | M11: =IF($A$4="LT","", "Fiscal rule") -> 
E13: 1 | F13: 2 | G13: 3=1-2 | H13: 4 | I13: 5 | J13: 6=3+5 | K13: 7
D14: – | E14: =IF(A4="LT","FM įsakymo Nr. 1K-006 forma SB-1-pajamos (73 eilutė)","Order MoF No. 1K-006 form SB-1-revenue (row 73)") -> FM įsakymo Nr. 1K-006 forma SB-1-pajamos (73 eilutė) | F14: =IF(A4="LT","FM įsakymo Nr. 1K-006 forma SB-3-išlaidos (1+77-102+111 eilutės)","Order MoF No. 1K-006 form SB-3-expenditure (rows 1+77-102+111)") -> FM įsakymo Nr. 1K-006 forma SB-3-išlaidos (1+77-102+111 eilutės) | G14: – | H14: =IF(A4="LT","FM įsakymo Nr. 1K-361 forma Nr. 1-SAV (105 eilutė)","Order MoF No. 1K-361 form No. A-SAV (row 105)") -> FM įsakymo Nr. 1K-361 forma Nr. 1-SAV (105 eilutė) | I14: =IF(A4="LT","Pagal savivaldybių patikslintus duomenis","According to the updated data provided by local governments") -> Pagal savivaldybių patikslintus duomenis | J14: – | K14: – | L14: – | M14: –
B15: Alytaus m. | C15: 2 | D15: =F15/$C$77/10 -> 0.1395465519 | E15: 58615.9 | F15: =52077.5+10877.3 -> 62954.8 | G15: =ROUND(E15-F15,1) -> -4338.9 | H15: 4900.7 | I15: 4900.7 | J15: =ROUND(G15+I15,0) -> 562 | K15: =J15/1000/$C$76*100 -> 0.001186426803 | L15: =+IF(($C$78+0.05>=0)*(J15<0),"Ne",IF(($C$78+0.05<0)*(F15/E15>1.015),"Ne","Taip")) -> Taip | M15: =IF($A$4="LT","",IF(L15="Taip","Yes",(IF(L15="Taip*","Yes*","No")))) -> 
B16: Birštono m. | C16: 3 | D16: 0.02116822961 | E16: 8999.1 | F16: =8215.8+1334 -> 9549.8 | G16: -550.7 | H16: 97.1 | I16: 551.7 | J16: =ROUND(G16+I16,0) -> 1 | K16: 2.111079721e-06 | L16: Taip | M16: =IF($A$4="LT","",IF(L16="Taip","Yes",(IF(L16="Taip*","Yes*","No")))) -> 
B17: Druskininkų m. | C17: 4 | D17: 0.04961094623 | E17: 20662.6 | F17: =19294.6+3086.8 -> 22381.4 | G17: -1718.8 | H17: 0 | I17: 1718.8 | J17: 0 | K17: 0 | L17: Taip
B18: Marijampolės m. | C18: 7 | D18: 0.1064657902 | E18: 48528 | F18: =46161+1869.8 -> 48030.8 | G18: 497.2 | H18: 686.4 | I18: 483.8 | J18: 981 | K18: 0.002070969207 | L18: Taip
B19: Neringos m. | C19: 8 | D19: 0.02486133181 | E19: 9688.7 | F19: =9957.9+1258 -> 11215.9 | G19: -1527.2 | H19: 1702.2 | I19: 1702.2 | J19: 175 | K19: 0.0003694389512 | L19: Taip
B20: Palangos m. | C20: 9 | D20: 0.05442942384 | E20: 24607.1 | F20: =21510.7+3096.4-51.9 -> 24555.2 | G20: 51.9 | H20: 627.8 | I20: 627.8 | J20: 680 | K20: 0.00143553421 | L20: Taip
B21: Panevėžio m. | C21: 10 | D21: 0.227864472 | E21: 102956.6 | F21: =78851.4+23955.2-8.2 -> 102798.4 | G21: 158.2 | H21: 2668.3 | I21: 2668.3 | J21: 2827 | K21: 0.005968022372 | L21: Taip
B22: Visagino m. | C22: 12 | D22: 0.06165492365 | E22: 24145.5 | F22: =22656.4+5158.5 -> 27814.9 | G22: -3669.4 | H22: 3734.7 | I22: 3734.7 | J22: 65 | K22: 0.0001372201819 | L22: Taip
B23: Akmenės r. | C23: 13 | D23: 0.0648727836 | E23: 26731.7 | F23: =23017.7+6248.9 -> 29266.6 | G23: -2534.9 | H23: 399.5 | I23: 2534.9 | J23: 0 | K23: 0 | L23: Taip
B24: Alytaus r. | C24: 14 | D24: 0.0546639417 | E24: 20877.1 | F24: =20752.1+3908.9 -> 24661 | G24: -3783.9 | H24: 4499.2 | I24: 4499.2 | J24: 715 | K24: 0.001509422001 | L24: Taip
B25: Anykščių r. | C25: 15 | D25: 0.06028439061 | E25: 25945.1 | F25: =23282+3914.6 -> 27196.6 | G25: -1251.5 | H25: 0 | I25: 1251.5 | J25: 0 | K25: 0 | L25: Taip
B26: Biržų r. | C26: 16 | D26: 0.05971361226 | E26: 25615.3 | F26: =23297.3+3641.8 -> 26939.1 | G26: -1323.8 | H26: 972.4 | I26: 1416.5 | J26: 93 | K26: 0.0001963304141 | L26: Taip
B27: Ignalinos r. | C27: 17 | D27: 0.03759955304 | E27: 15875.6 | F27: =15618.6+1344 -> 16962.6 | G27: -1087 | H27: 0 | I27: 1086.9 | J27: 0 | K27: 0 | L27: Taip
B28: Jonavos r. | C28: 18 | D28: 0.1090643279 | E28: 46393.2 | F28: =41247.7+8042.7-87.3 -> 49203.1 | G28: -2809.9 | H28: 3574.7 | I28: 3574.7 | J28: 765 | K28: 0.001614975987 | L28: Taip
B29: Joniškio r. | C29: 19 | D29: 0.05102315162 | E29: 22099.5 | F29: =21760.8+1257.7 -> 23018.5 | G29: -919 | H29: 449.3 | I29: 919 | J29: 0 | K29: 0 | L29: Taip
A30: - | B30: Jurbarko r. | C30: 20 | D30: 0.06276079286 | E30: 26395.9 | F30: =25608.2+2705.6 -> 28313.8 | G30: -1917.9 | H30: 2037.2 | I30: 2037.2 | J30: 119 | K30: 0.0002512184868 | L30: Taip
A31: - | B31: Kaišiadorių r. | C31: 21 | D31: 0.07142975233 | E31: 31200.1 | F31: =27544.7+4680 -> 32224.7 | G31: -1024.6 | H31: 332.9 | I31: =1286.1+119.9 -> 1406 | J31: 381 | K31: 0.0008043213738 | L31: Taip
B32: Kauno r. | C32: 22 | D32: =F32/$C$77/10 -> 0.1886115459 | E32: 83141.5 | F32: =68967.1+16122.8 -> 85089.9 | G32: -1948.4 | H32: 0 | I32: 2109.4 | J32: 161 | K32: 0.0003398838351 | L32: Taip
B33: Kėdainių r. | C33: 23 | D33: 0.1328654528 | E33: 53225.2 | F33: =46777.1+13163.6 -> 59940.7 | G33: -6715.5 | H33: 4848.2 | I33: 7078.3 | J33: 363 | K33: 0.0007663219388 | L33: Taip
B34: Kelmės r. | C34: 24 | D34: 0.07317644493 | E34: 31143.4 | F34: =26579+6433.7 -> 33012.7 | G34: -1869.3 | H34: 1423.7 | I34: =1423.7 -> 1423.7 | J34: -446 | K34: -0.0009415415557 | L34: Taip*
B35: Klaipėdos r. | C35: 25 | D35: 0.1268588695 | E35: 55843.7 | F35: =48233.4+8997.5 -> 57230.9 | G35: -1387.2 | H35: 1513 | I35: 1513 | J35: 126 | K35: 0.0002659960449 | L35: Taip
B36: Kretingos r. | C36: 26 | D36: 0.09446415008 | E36: 39885.3 | F36: =33650.1+8966.3 -> 42616.4 | G36: -2731.1 | H36: 0 | I36: =1755.6 -> 1755.6 | J36: -976 | K36: -0.002060413808 | L36: Taip*
B37: Kupiškio r. | C37: 27 | D37: 0.04022025692 | E37: 17759.8 | F37: =16948.1+1196.8 -> 18144.9 | G37: -385.1 | H37: 556.9 | I37: 556.9 | J37: 172 | K37: 0.0003631057121 | L37: Taip
B38: Lazdijų r. | C38: 28 | D38: 0.04848091591 | E38: 21205.9 | F38: =20239.8+1631.8 -> 21871.6 | G38: -665.7 | H38: 1394.5 | I38: 1394.5 | J38: 729 | K38: 0.001538977117 | L38: Taip
B39: Mažeikių r. | C39: 30 | D39: 0.1367952894 | E39: 59737.9 | F39: =54134.6+7579 -> 61713.6 | G39: -1975.7 | H39: 2454 | I39: 2454 | J39: 478 | K39: 0.001009096107 | L39: Taip
B40: Molėtų r. | C40: 31 | D40: 0.04563988051 | E40: 19930.4 | F40: =17389.1+3200.8 -> 20589.9 | G40: -659.5 | H40: 682.3 | I40: 682.3 | J40: 23 | K40: 4.855483359e-05 | L40: Taip
B41: Pakruojo r. | C41: 32 | D41: 0.04752267326 | E41: 20990.6 | F41: =20556.9+897.8-15.4 -> 21439.3 | G41: -448.7 | H41: 0 | I41: 495.4 | J41: 47 | K41: 9.92207469e-05 | L41: Taip
B42: Panevėžio r. | C42: 33 | D42: 0.08365216726 | E42: 36549.7 | F42: =31344.8+6393.9 -> 37738.7 | G42: -1189 | H42: 2565.5 | I42: 2565.5 | J42: 1377 | K42: 0.002906956776 | L42: Taip
B43: Pasvalio r. | C43: 34 | D43: 0.05847696277 | E43: 25837.6 | F43: =24782.7+1598.5 -> 26381.2 | G43: -543.6 | H43: 543.6 | I43: 543.6 | J43: 0 | K43: 0 | L43: Taip
B44: Plungės r. | C44: 35 | D44: 0.08667186183 | E44: 37835.1 | F44: =30828.7+8272.3 -> 39101 | G44: -1265.9 | H44: 1265.9 | I44: 1265.9 | J44: 0 | K44: 0 | L44: Taip
B45: Prienų r. | C45: 36 | D45: 0.05605353763 | E45: 25099.1 | F45: =24057.4+1230.5 -> 25287.9 | G45: -188.8 | H45: 632.2 | I45: 871.8 | J45: 683 | K45: 0.00144186745 | L45: Taip
B46: Radviliškio r. | C46: 37 | D46: 0.09062364299 | E46: 36498.3 | F46: =37546.1+3337.7 -> 40883.8 | G46: -4385.5 | H46: 525.8 | I46: 4385.5 | J46: 0 | K46: 0 | L46: Taip
B47: Raseinių r. | C47: 38 | D47: 0.07072885868 | E47: 31381.9 | F47: =30044.8+1893.6-29.9 -> 31908.5 | G47: -526.6 | H47: 1183.7 | I47: 1047.3 | J47: 521 | K47: =J47/1000/$C$76*100 -> 0.001099872535 | L47: =+IF(($C$78+0.05>=0)*(J47<0),"Ne",IF(($C$78+0.05<0)*(F47/E47>1.015),"Ne","Taip")) -> Taip
B48: Rokiškio r. | C48: 39 | D48: 0.06458462365 | E48: 28364.4 | F48: =28879.2+257.4 -> 29136.6 | G48: -772.2 | H48: 772.2 | I48: 772.2 | J48: 0 | K48: 0 | L48: Taip
B49: Skuodo r. | C49: 40 | D49: 0.04157039709 | E49: 18109 | F49: =16342.1+2411.9 -> 18754 | G49: -645 | H49: 643.7 | I49: 645 | J49: 0 | K49: 0 | L49: Taip
B50: Šakių r. | C50: 41 | D50: 0.0650782638 | E50: 28544.2 | F50: =27084.7+2274.6 -> 29359.3 | G50: -815.1 | H50: 832.6 | I50: 1223 | J50: 408 | K50: 0.0008613205263 | L50: Taip
B51: Šalčininkų r. | C51: 42 | D51: 0.06762005619 | E51: 30325.2 | F51: =30037.4+468.6 -> 30506 | G51: -180.8 | H51: 741.8 | I51: 741.8 | J51: 561 | K51: 0.001184315724 | L51: Taip
B52: Šiaulių r. | C52: 43 | D52: 0.07858210385 | E52: 34648.3 | F52: =32419.9+3031.5 -> 35451.4 | G52: -803.1 | H52: 839.4 | I52: 839.4 | J52: =ROUND(G52+I52,0) -> 36 | K52: 7.599886997e-05 | L52: Taip
B53: Šilalės r. | C53: 44 | D53: 0.05781042665 | E53: 25490.9 | F53: =22520.6+3559.9 -> 26080.5 | G53: -589.6 | H53: 0 | I53: 1039.6 | J53: 450 | K53: 0.0009499858746 | L53: Taip
B54: Šilutės r. | C54: 45 | D54: 0.09662800962 | E54: 42425.9 | F54: =37895.2+5697.4 -> 43592.6 | G54: -1166.7 | H54: 0 | I54: 1166.8 | J54: 0 | K54: 0 | L54: Taip
B55: Širvintų r. | C55: 46 | D55: 0.03577638723 | E55: 15542.1 | F55: =14318.7+1821.4 -> 16140.1 | G55: -598 | H55: 950.8 | I55: 950.8 | J55: 353 | K55: 0.0007452111416 | L55: Taip
B56: Švenčionių r. | C56: 47 | D56: 0.0650858003 | E56: 28147.3 | F56: =20877.1+8551.9-66.3 -> 29362.7 | G56: -1215.4 | H56: 1219.5 | I56: 1219.5 | J56: 4 | K56: 8.444318885e-06 | L56: Taip
B57: Tauragės r. | C57: 48 | D57: 0.09612927125 | E57: 40770.4 | F57: =34578.2+8789.4 -> 43367.6 | G57: -2597.2 | H57: 2597.2 | I57: 2597.2 | J57: 0 | K57: 0 | L57: Taip
B58: Telšių r. | C58: 49 | D58: 0.09097431148 | E58: 40182.3 | F58: =37310.5+3731.5 -> 41042 | G58: -859.7 | H58: 612.6 | I58: 859.7 | J58: 0 | K58: 0 | L58: Taip
B59: Trakų r. | C59: 50 | D59: 0.09054029827 | E59: 39239.8 | F59: =32729.2+8129.1-12.1 -> 40846.2 | G59: -1606.4 | H59: 2476.9 | I59: 2476.9 | J59: 871 | K59: 0.001838750437 | L59: Taip
B60: Ukmergės r. | C60: 51 | D60: 0.08175651814 | E60: 34426.1 | F60: =33604.9+3329.6-51 -> 36883.5 | G60: -2457.4 | H60: 2542.2 | I60: 2542.2 | J60: 85 | K60: 0.0001794417763 | L60: Taip
B61: Utenos r. | C61: 52 | D61: 0.08302464356 | E61: 36826.6 | F61: =33604+3851.6 -> 37455.6 | G61: -629 | H61: 675 | I61: 674.6 | J61: 46 | K61: 9.710966718e-05 | L61: Taip
B62: Varėnos r. | C62: 53 | D62: 0.05221258721 | E62: 22127.2 | F62: =21463.1+2092 -> 23555.1 | G62: -1427.9 | H62: 1428 | I62: 1428 | J62: 0 | K62: 0 | L62: Taip
B63: Vilkaviškio r. | C63: 54 | D63: 0.08016454527 | E63: 34950.8 | F63: =33632.1+2533.2 -> 36165.3 | G63: -1214.5 | H63: 1091.7 | I63: 1214.5 | J63: 0 | K63: 0 | L63: Taip
B64: Vilniaus r. | C64: 55 | D64: 0.1975600205 | E64: 83128.7 | F64: =80878.4+8248.5 -> 89126.9 | G64: -5998.2 | H64: 5998.2 | I64: 5998.2 | J64: 0 | K64: 0 | L64: Taip
B65: Zarasų r. | C65: 56 | D65: 0.04206714051 | E65: 17257.9 | F65: =16290.8+2687.3 -> 18978.1 | G65: -1720.2 | H65: 211.7 | I65: 1096.8 | J65: -623 | K65: -0.001315202666 | L65: Ne
B66: Elektrėnų sav. | C66: 57 | D66: 0.07273556021 | E66: 31901.3 | F66: =23725.4+9095.7-7.3 -> 32813.8 | G66: -912.5 | H66: 488.7 | I66: 197.9 | J66: -715 | K66: -0.001509422001 | L66: Ne
B67: Kalvarijos sav. | C67: 58 | D67: 0.02359653131 | E67: 10403.3 | F67: =10317.1+328.2 -> 10645.3 | G67: -242 | H67: 0 | I67: 269 | J67: 27 | K67: 5.699915247e-05 | L67: Taip
B68: Kazlų Rūdos sav. | C68: 59 | D68: 0.02555158571 | E68: 10974.3 | F68: =10827.2+700.1 -> 11527.3 | G68: -553 | H68: 31.9 | I68: 558 | J68: 5 | K68: 1.055539861e-05 | L68: Taip
B69: Pagėgių sav. | C69: 60 | D69: 0.02059589963 | E69: 9135.2 | F69: =8706.2+585.4 -> 9291.6 | G69: -156.4 | H69: 105.3 | I69: 132.4 | J69: -24 | K69: -5.066591331e-05 | L69: Ne
B70: Rietavo sav. | C70: 61 | D70: 0.02107069855 | E70: 9216.7 | F70: =7540.3+1965.5 -> 9505.8 | G70: -289.1 | H70: 0 | I70: 498.3 | J70: 209 | K70: 0.0004412156617 | L70: Taip
K71: =IF(A4="lt", "T4 (iš viso nesilaiko savivaldybių)","T4 (total do not comply)") -> T4 (iš viso nesilaiko savivaldybių) | L71: =COUNTIF($L$15:$L$70,"Ne") -> 3 | M71: =IF($A$4="LT","",L71 ) -> 
M72: =IF($A$4="LT","",L72 ) -> 
E73: =IF(A4="LT","* Deficitas investicijoms pagal Finansų ministro 2019-03-28 įsakymu Nr. 1K-98 „Dėl projektų atrankos“ patvirtintą tvarką. VšĮ CPVA patvirtinti ir į 2019 m. patvirtinto","* Deficit for investments under the Order of the MoF No. 1K-098 of 28 March 2019. Investment projects, which are approved by the ") -> * Deficitas investicijoms pagal Finansų ministro 2019-03-28 įsakymu Nr. 1K-98 „Dėl projektų atrankos“ patvirtintą tvarką. VšĮ CPVA patvirtinti ir į 2019 m. patvirtinto
E74: =IF(A4="LT","biudžeto asignavimus įtrauktos investicijos. Atitiktis KĮ nuostatoms turi būti užtikrinta per ketverių metų laikotarpį.","Central Project Management Agency and included into local governments budgets of 2019. Compliance with the rules of Constitutional Law shall be ensured t+4.") -> biudžeto asignavimus įtrauktos investicijos. Atitiktis KĮ nuostatoms turi būti užtikrinta per ketverių metų laikotarpį.
B75: =Savivaldybės!B70 -> 2018 m. potencialus BVP, mln. EUR | C75: =Savivaldybės!C70 -> 36551.25119
B76: =Savivaldybės!B71 -> 2019 m. BVP projekcija, mln. EUR | C76: =Savivaldybės!C71 -> 47369.12538
B77: =Savivaldybės!B72 -> 2018 m. BVP, mln. EUR | C77: =Savivaldybės!C72 -> 45113.83415
B78: =Savivaldybės!B73 -> 2019 m. atotrūkis nuo potencialo, proc. pot. BVP | C78: =Savivaldybės!C73 -> 1.511846345
B79: =Savivaldybės!B74 -> 2019 m. projektuotos valžios sektoriaus išlaidos, mln. EUR | C79: =Savivaldybės!C74 -> 17050.3
B80: =Savivaldybės!B75 -> 2018 m. visos išlaidos, mln. EUR | C80: =Savivaldybės!C75 -> 15342.7585
B82: =+Savivaldybės!B78 -> Šaltiniai:
B83: =+Savivaldybės!B79 -> Finansų ministerija (FM)
B84: =+Savivaldybės!B80 -> Fiskalinės institucijos skaičiavimai (IFI)
B85: =+Savivaldybės!B81 -> Faktiniai duomenys

Sheet 1 pav.
B1: =IF(A4="lt","↖ atgal į turinį","") -> ↖ atgal į turinį
B2: =IF(A4="en","↖ back to content","") ->  | C2: =IF(A4="en","↖ back to content","") -> 
A4: =Turinys!B2 -> LT | B4: =IF(A4="LT","1 pav. Skirtumai tarp savivaldybių Finansų ministerijai pateiktų ir fiskalinei institucijai patikslintų duomenų apie nepanaudotą praėjusių metų pajamų dalį","Figure 1. Differences between the data of revenue, carried forward to the following budget year, which were provided to the Ministry of Finance and to the updated data, provided Independent fiscal institution") -> 1 pav. Skirtumai tarp savivaldybių Finansų ministerijai pateiktų ir fiskalinei institucijai patikslintų duomenų apie nepanaudotą praėjusių metų pajamų dalį | C4: =IF(B4="LT","1 pav. Skirtumai tarp savivaldybių Finansų ministerijai pateiktų ir fiskalinei institucijai patikslintų duomenų apie nepanaudotą praėjusių metų pajamų dalį","Figure 1. Differences between data of revenue, carried forward to the following budget year, provided to the Ministry of Finance and to the updated data, provided for Independent fiscal institution") -> Figure 1. Differences between data of revenue, carried forward to the following budget year, provided to the Ministry of Finance and to the updated data, provided for Independent fiscal institution | F4: =IF(A4="LT","Savivaldybė","Local government") -> Savivaldybė | G4: =IF(A4="LT","Nepanaudota praėjusių metų pajamų dalis, tūkst. EUR","Revenue, carried forward to the following budget year, thousands EUR") -> Nepanaudota praėjusių metų pajamų dalis, tūkst. EUR
G5: =IF(A4="LT","Finansų ministerijai pateikti duomenys","Data provided to the MoF") -> Finansų ministerijai pateikti duomenys | H5: =IF(A4="LT","Pagal savivaldybių patikslintus duomenis","Updated data provided by local governments") -> Pagal savivaldybių patikslintus duomenis
F6: Radviliškio r. | G6: 525.8 | H6: 4385.5
F7: Kėdainių r. | G7: 4848.2 | H7: 7078.3
F8: Akmenės r. | G8: 399.5 | H8: 2534.9
F9: Kauno r. | G9: 0 | H9: 2109.4
F10: Kretingos r. | G10: 0 | H10: 1755.6
F11: Druskininkų m. | G11: 0 | H11: 1718.8
F12: Anykščių r. | G12: 0 | H12: 1251.5
F13: Šilutės r. | G13: 0 | H13: =1308.1-141.3 -> 1166.8
F14: Ignalinos r. | G14: 0 | H14: 1086.9
F15: Kaišiadorių r. | G15: 332.9 | H15: =1286.1+119.9 -> 1406
F16: Šilalės r. | G16: 0 | H16: 1039.6
A17: - | F17: Zarasų r. | G17: 211.7 | H17: 1096.8
F18: Kazlų Rūdos sav. | G18: 31.9 | H18: 558
F19: Rietavo sav. | G19: 0 | H19: 498.3
F20: Pakruojo r. | G20: 0 | H20: 495.4
F21: Joniškio r. | G21: 449.3 | H21: 919
F22: Birštono m. | G22: 97.1 | H22: 551.7
F23: Biržų r. | G23: 972.4 | H23: 1416.5
B24: =IF(A4="LT","Šaltinis – Fiskalinės institucijos skaičiavimai","Source - Independent fiscal institution calculations") -> Šaltinis – Fiskalinės institucijos skaičiavimai | C24: =IF(B4="LT","Šaltinis – Fiskalinės institucijos skaičiavimai","Source - Independent fiscal institution calculations") -> Source - Independent fiscal institution calculations | F24: Šakių r. | G24: 832.6 | H24: =832.6+390.4 -> 1223
F25: Kalvarijos sav. | G25: 0 | H25: 269
F26: Telšių r. | G26: 612.6 | H26: 859.7
F27: Prienų r. | G27: 632.2 | H27: 871.8
F28: Vilkaviškio r. | G28: 1091.7 | H28: 1214.5
F29: Pagėgių sav. | G29: 105.3 | H29: =5.7+9.6+105.3+5.1+6.7 -> 132.4
F30: Skuodo r. | G30: 643.7 | H30: 645
F31: Utenos r. | G31: 675 | H31: =675-0.4 -> 674.6
F32: Raseinių r. | G32: 1183.7 | H32: =770.6+276.7 -> 1047.3
F33: Marijampolės m. | G33: 686.4 | H33: 483.8
F34: Elektrėnų sav. | G34: 488.7 | H34: =156.2+41.7 -> 197.9

Sheet 2 pav.
B1: =IF(A5="lt","↖ atgal į turinį","") -> ↖ atgal į turinį | E1: =IF(A5="lt","↖ atgal į turinį","") -> ↖ atgal į turinį
A3: LT | B3: =IF(A5="en","↖ back to content","") ->  | E3: =IF(A5="en","↖ back to content","") -> 
B4: =IF(A5="LT","2 pav. Savivaldybių 2019 m. biudžetų fiskalinės drausmės taisyklių laikymosi vertinimas","Figure 2. Local governments' compliance with Fiscal discipline for the year 2019") -> 2 pav. Savivaldybių 2019 m. biudžetų fiskalinės drausmės taisyklių laikymosi vertinimas | E4: =IF(A5="LT","2 pav. Savivaldybių 2019 m. biudžetų fiskalinės drausmės taisyklių laikymosi vertinimas","Figure 2. Local governments' compliance with Fiscal discipline for the year 2019") -> 2 pav. Savivaldybių 2019 m. biudžetų fiskalinės drausmės taisyklių laikymosi vertinimas
A5: =+[0]!Kalba -> LT
A12: -
B28: =IF(A5="LT","Šaltinis – Fiskalinės institucijos skaičiavimai","Source – Independent fiscal institution calculations") -> Šaltinis – Fiskalinės institucijos skaičiavimai | E28: =IF(A5="LT","Šaltinis – Fiskalinės institucijos skaičiavimai","Source – Independent fiscal institution calculations") -> Šaltinis – Fiskalinės institucijos skaičiavimai
B30: Nuoroda į interaktyvų žemėlapį | E30: The link to interactive map
